[Event "Titled Tuesday Blitz August 1 Early 2023"]
[White "Tqebuchava, Zurab"]
[Black "Yashmetov, Mikhail"]
[WhiteFideId "13601113"]
[BlackFideId "24198900"]
[WhiteElo "2273"]
[BlackElo "2458"]
[Result "0-1"]
[Round "8"]
[TimeControl "180+1"]
[Date "2023.08.01"]
[WhiteClock "0:00:00"]
[BlackClock "0:00:05"]
[Board "146"]

1. e4 {[%clk 0:02:59]}  c5 {[%clk 0:03:00]} 2. Nf3 {[%clk 0:02:59]}  Nc6 {[%clk 0:03:00]} 3. Bb5 {[%clk 0:02:59]}  d6 {[%clk 0:02:59]} 4. Bxc6+ {[%clk 0:02:58]}  bxc6 {[%clk 0:02:59]} 5. h3 {[%clk 0:02:58]}  e5 {[%clk 0:03:00]} 6. O-O {[%clk 0:02:58]}  Be7 {[%clk 0:03:00]} 7. Nc3 {[%clk 0:02:59]}  f5 {[%clk 0:03:00]} 8. d3 {[%clk 0:02:58]}  Nf6 {[%clk 0:02:59]} 9. exf5 {[%clk 0:02:54]}  Bxf5 {[%clk 0:02:59]} 10. Nh2 {[%clk 0:02:54]}  O-O {[%clk 0:02:59]} 11. f4 {[%clk 0:02:51]}  exf4 {[%clk 0:02:47]} 12. Bxf4 {[%clk 0:02:50]}  Nd5 {[%clk 0:02:48]} 13. Nxd5 {[%clk 0:02:39]}  cxd5 {[%clk 0:02:49]} 14. Qh5 {[%clk 0:02:23]}  Bf6 {[%clk 0:02:43]} 15. c3 {[%clk 0:02:10]}  Rb8 {[%clk 0:02:41]} 16. Kh1 {[%clk 0:02:01]}  g6 {[%clk 0:02:38]} 17. Qf3 {[%clk 0:01:52]}  Rxb2 {[%clk 0:02:05]} 18. Qxd5+ {[%clk 0:01:49]}  Kg7 {[%clk 0:02:06]} 19. Rab1 {[%clk 0:01:32]}  Qb6 {[%clk 0:01:49]} 20. Rxb2 {[%clk 0:01:20]}  Qxb2 {[%clk 0:01:50]} 21. Qxd6 {[%clk 0:01:16]}  Rd8 {[%clk 0:01:24]} 22. Bh6+ {[%clk 0:00:53]}  Kf7 {[%clk 0:01:24]} 23. Qxc5 {[%clk 0:00:50]}  Qb7 {[%clk 0:00:39]} 24. Ng4 {[%clk 0:00:35]}  Rxd3 {[%clk 0:00:26]} 25. Qc4+ {[%clk 0:00:23]}  Qd5 {[%clk 0:00:26]} 26. Qxd5+ {[%clk 0:00:20]}  Rxd5 {[%clk 0:00:27]} 27. Nxf6 {[%clk 0:00:20]}  Kxf6 {[%clk 0:00:19]} 28. g4 {[%clk 0:00:20]}  Rd3 {[%clk 0:00:20]} 29. Kh2 {[%clk 0:00:18]}  Rxc3 {[%clk 0:00:17]} 30. gxf5 {[%clk 0:00:17]}  Rc2+ {[%clk 0:00:18]} 31. Kg3 {[%clk 0:00:16]}  Rxa2 {[%clk 0:00:18]} 32. fxg6+ {[%clk 0:00:15]}  Kxg6 {[%clk 0:00:18]} 33. Be3 {[%clk 0:00:15]}  Ra3 {[%clk 0:00:18]} 34. Kf3 {[%clk 0:00:14]}  a5 {[%clk 0:00:18]} 35. Rg1+ {[%clk 0:00:13]}  Kf7 {[%clk 0:00:17]} 36. Rc1 {[%clk 0:00:12]}  a4 {[%clk 0:00:13]} 37. Rc7+ {[%clk 0:00:12]}  Kg6 {[%clk 0:00:13]} 38. Ra7 {[%clk 0:00:11]}  Ra2 {[%clk 0:00:11]} 39. h4 {[%clk 0:00:10]}  Ra1 {[%clk 0:00:08]} 40. Kg4 {[%clk 0:00:08]}  Re1 {[%clk 0:00:07]} 41. Bf4 {[%clk 0:00:06]}  Rg1+ {[%clk 0:00:07]} 42. Bg3 {[%clk 0:00:06]}  h5+ {[%clk 0:00:07]} 43. Kf3 {[%clk 0:00:05]}  Rf1+ {[%clk 0:00:07]} 44. Kg2 {[%clk 0:00:05]}  Ra1 {[%clk 0:00:06]} 45. Ra5 {[%clk 0:00:05]}  Ra2+ {[%clk 0:00:04]} 46. Kf3 {[%clk 0:00:05]}  Ra3+ {[%clk 0:00:04]} 47. Ke4 {[%clk 0:00:05]}  Rxg3 {[%clk 0:00:04]} 48. Kf4 {[%clk 0:00:04]}  Rg4+ {[%clk 0:00:05]} 49. Kf3 {[%clk 0:00:03]}  Rxh4 {[%clk 0:00:05]} 50. Kg3 {[%clk 0:00:03]}  Rb4 {[%clk 0:00:06]} 51. Kh3 {[%clk 0:00:03]}  Rb3+ {[%clk 0:00:05]} 52. Kg2 {[%clk 0:00:03]}  a3 {[%clk 0:00:05]} 53. Ra6+ {[%clk 0:00:02]}  Kf5 {[%clk 0:00:06]} 54. Ra5+ {[%clk 0:00:02]}  Ke4 {[%clk 0:00:06]} 55. Rxh5 {[%clk 0:00:02]}  Kd3 {[%clk 0:00:07]} 56. Rh8 {[%clk 0:00:02]}  Kc2 {[%clk 0:00:02]} 57. Rc8+ {[%clk 0:00:02]}  Kb1 {[%clk 0:00:02]} 58. Kf2 {[%clk 0:00:03]}  a2 {[%clk 0:00:02]} 59. Ke2 {[%clk 0:00:04]}  a1=Q {[%clk 0:00:03]} 60. Rd8 {[%clk 0:00:03]}  Qe5+ {[%clk 0:00:03]} 61. Kf2 {[%clk 0:00:02]}  Qf6+ {[%clk 0:00:04]} 62. Kg2 {[%clk 0:00:02]}  Qxd8 {[%clk 0:00:04]} 63. Kf2 {[%clk 0:00:00]}  Qf6+ {[%clk 0:00:05]} 0-1


[Site "https://www.chess.com"]

[Event "Titled Tuesday Blitz August 1 Early 2023"]
[White "Kazakov, Mikhail"]
[Black "Preobrazhenska_D2011"]
[WhiteFideId "14102749"]
[WhiteElo "2446"]
[BlackElo "2129"]
[Result "1-0"]
[Round "8"]
[TimeControl "180+1"]
[Date "2023.08.01"]
[WhiteClock "0:00:14"]
[BlackClock "0:00:00"]
[Board "148"]

1. e4 {[%clk 0:02:53]}  c5 {[%clk 0:02:59]} 2. Nf3 {[%clk 0:02:52]}  d6 {[%clk 0:02:59]} 3. g3 {[%clk 0:02:52]}  Nc6 {[%clk 0:02:55]} 4. Bg2 {[%clk 0:02:51]}  Nf6 {[%clk 0:02:54]} 5. Nc3 {[%clk 0:02:45]}  g6 {[%clk 0:02:43]} 6. O-O {[%clk 0:02:39]}  Bg7 {[%clk 0:02:42]} 7. Re1 {[%clk 0:02:40]}  O-O {[%clk 0:02:41]} 8. h3 {[%clk 0:02:39]}  Bd7 {[%clk 0:02:38]} 9. d3 {[%clk 0:02:28]}  Nd4 {[%clk 0:02:29]} 10. Nxd4 {[%clk 0:02:24]}  cxd4 {[%clk 0:02:29]} 11. Ne2 {[%clk 0:02:25]}  e5 {[%clk 0:02:28]} 12. c3 {[%clk 0:02:24]}  dxc3 {[%clk 0:02:23]} 13. bxc3 {[%clk 0:02:25]}  Bc6 {[%clk 0:02:18]} 14. f4 {[%clk 0:02:17]}  Qc7 {[%clk 0:02:12]} 15. Be3 {[%clk 0:02:14]}  Nh5 {[%clk 0:02:03]} 16. d4 {[%clk 0:02:08]}  Qa5 {[%clk 0:01:40]} 17. fxe5 {[%clk 0:02:01]}  dxe5 {[%clk 0:01:39]} 18. d5 {[%clk 0:01:48]}  Ba4 {[%clk 0:01:38]} 19. Qb1 {[%clk 0:01:44]}  Qc7 {[%clk 0:01:17]} 20. Qb4 {[%clk 0:01:38]}  Bd7 {[%clk 0:01:15]} 21. c4 {[%clk 0:01:37]}  a5 {[%clk 0:01:12]} 22. Qb3 {[%clk 0:01:29]}  f5 {[%clk 0:00:51]} 23. c5 {[%clk 0:01:23]}  Kh8 {[%clk 0:00:41]} 24. Rac1 {[%clk 0:01:17]}  f4 {[%clk 0:00:39]} 25. gxf4 {[%clk 0:01:17]}  exf4 {[%clk 0:00:39]} 26. Bd4 {[%clk 0:01:17]}  f3 {[%clk 0:00:32]} 27. Bxg7+ {[%clk 0:01:14]}  Kxg7 {[%clk 0:00:27]} 28. Bxf3 {[%clk 0:01:14]}  Nf4 {[%clk 0:00:21]} 29. Qc3+ {[%clk 0:01:03]}  Kg8 {[%clk 0:00:19]} 30. d6 {[%clk 0:01:00]}  Nxh3+ {[%clk 0:00:19]} 31. Kh2 {[%clk 0:00:59]}  Qd8 {[%clk 0:00:20]} 32. e5 {[%clk 0:00:48]}  Qh4 {[%clk 0:00:09]} 33. Bd5+ {[%clk 0:00:41]}  Kg7 {[%clk 0:00:09]} 34. e6+ {[%clk 0:00:36]}  Kh6 {[%clk 0:00:10]} 35. Qxh3 {[%clk 0:00:33]}  Rf2+ {[%clk 0:00:10]} 36. Bg2 {[%clk 0:00:33]}  Qxh3+ {[%clk 0:00:06]} 37. Kxh3 {[%clk 0:00:32]}  Bxe6+ {[%clk 0:00:07]} 38. Kg3 {[%clk 0:00:32]}  Raf8 {[%clk 0:00:06]} 39. Nd4 {[%clk 0:00:25]}  Bxa2 {[%clk 0:00:05]} 40. Bf3 {[%clk 0:00:21]}  Rb2 {[%clk 0:00:04]} 41. Rc2 {[%clk 0:00:18]}  Rxc2 {[%clk 0:00:04]} 42. Nxc2 {[%clk 0:00:19]}  Bc4 {[%clk 0:00:03]} 43. Re7 {[%clk 0:00:18]}  b6 {[%clk 0:00:03]} 44. cxb6 {[%clk 0:00:17]}  a4 {[%clk 0:00:03]} 45. Rc7 {[%clk 0:00:16]}  Bb3 {[%clk 0:00:03]} 46. Na3 {[%clk 0:00:16]}  Rd8 {[%clk 0:00:03]} 47. b7 {[%clk 0:00:16]}  Be6 {[%clk 0:00:02]} 48. Nb5 {[%clk 0:00:15]}  a3 {[%clk 0:00:02]} 49. Nxa3 {[%clk 0:00:14]}  Rb8 {[%clk 0:00:03]} 50. d7 {[%clk 0:00:14]}  Kg5 {[%clk 0:00:00]} 51. Rc8 {[%clk 0:00:14]} 1-0


[Site "https://www.chess.com"]

[Event "Titled Tuesday Blitz August 1 Early 2023"]
[White "Jegorovas, Aleksandras"]
[Black "Khamdamova, Afruza"]
[WhiteFideId "12801950"]
[BlackFideId "14210444"]
[WhiteElo "2353"]
[BlackElo "2487"]
[Result "0-1"]
[Round "8"]
[TimeControl "180+1"]
[Date "2023.08.01"]
[WhiteClock "0:00:13"]
[BlackClock "0:00:03"]
[Board "153"]

1. d4 {[%clk 0:02:52]}  Nf6 {[%clk 0:03:00]} 2. Bf4 {[%clk 0:02:51]}  d5 {[%clk 0:03:00]} 3. e3 {[%clk 0:02:50]}  c5 {[%clk 0:03:00]} 4. Nf3 {[%clk 0:02:49]}  Nc6 {[%clk 0:02:59]} 5. Nbd2 {[%clk 0:02:49]}  Qb6 {[%clk 0:02:58]} 6. dxc5 {[%clk 0:02:49]}  Qxb2 {[%clk 0:02:58]} 7. Rb1 {[%clk 0:02:50]}  Qc3 {[%clk 0:02:59]} 8. Bb5 {[%clk 0:02:50]}  e6 {[%clk 0:02:58]} 9. O-O {[%clk 0:02:44]}  Be7 {[%clk 0:02:57]} 10. Nd4 {[%clk 0:02:37]}  Bd7 {[%clk 0:02:55]} 11. Bxc6 {[%clk 0:02:36]}  bxc6 {[%clk 0:02:51]} 12. Bd6 {[%clk 0:02:33]}  Bxd6 {[%clk 0:02:51]} 13. cxd6 {[%clk 0:02:33]}  O-O {[%clk 0:02:50]} 14. Rb7 {[%clk 0:02:29]}  Qc5 {[%clk 0:02:46]} 15. c4 {[%clk 0:02:16]}  Qxd6 {[%clk 0:02:45]} 16. e4 {[%clk 0:02:13]}  e5 {[%clk 0:02:32]} 17. f4 {[%clk 0:01:58]}  Bc8 {[%clk 0:02:14]} 18. fxe5 {[%clk 0:01:01]}  Qxe5 {[%clk 0:01:44]} 19. Nxc6 {[%clk 0:00:57]}  Qg5 {[%clk 0:01:30]} 20. Ne7+ {[%clk 0:00:55]}  Kh8 {[%clk 0:01:30]} 21. Nxc8 {[%clk 0:00:55]}  Raxc8 {[%clk 0:01:29]} 22. cxd5 {[%clk 0:00:53]}  Ng4 {[%clk 0:00:46]} 23. Rf3 {[%clk 0:00:41]}  Ne3 {[%clk 0:00:35]} 24. Qe2 {[%clk 0:00:37]}  Rc1+ {[%clk 0:00:35]} 25. Nf1 {[%clk 0:00:37]}  Ng4 {[%clk 0:00:07]} 26. Rfxf7 {[%clk 0:00:30]}  Re8 {[%clk 0:00:03]} 27. Rxg7 {[%clk 0:00:29]}  Rxf1+ {[%clk 0:00:01]} 28. Kxf1 {[%clk 0:00:16]}  Rf8+ {[%clk 0:00:02]} 29. Ke1 {[%clk 0:00:14]}  Qc1+ {[%clk 0:00:02]} 30. Qd1 {[%clk 0:00:14]}  Rf1+ {[%clk 0:00:02]} 31. Kxf1 {[%clk 0:00:13]}  Qxd1# {[%clk 0:00:03]} 0-1


[Site "https://www.chess.com"]

[Event "Titled Tuesday Blitz August 1 Early 2023"]
[White "Van den Dikkenberg, Erik"]
[Black "NicolaiMaxime"]
[WhiteFideId "1005880"]
[WhiteElo "2333"]
[BlackElo "2475"]
[Result "1-0"]
[Round "8"]
[TimeControl "180+1"]
[Date "2023.08.01"]
[WhiteClock "0:00:42"]
[BlackClock "0:01:20"]
[Board "154"]

1. e4 {[%clk 0:02:59]}  c5 {[%clk 0:02:59]} 2. Nc3 {[%clk 0:02:58]}  Nc6 {[%clk 0:02:58]} 3. f4 {[%clk 0:02:59]}  d6 {[%clk 0:02:56]} 4. Nf3 {[%clk 0:02:59]}  g6 {[%clk 0:02:56]} 5. Bb5 {[%clk 0:02:59]}  a6 {[%clk 0:02:56]} 6. Bxc6+ {[%clk 0:02:59]}  bxc6 {[%clk 0:02:57]} 7. O-O {[%clk 0:03:00]}  Bg7 {[%clk 0:02:57]} 8. d3 {[%clk 0:03:00]}  Nf6 {[%clk 0:02:55]} 9. Qe1 {[%clk 0:03:00]}  O-O {[%clk 0:02:55]} 10. Qh4 {[%clk 0:03:00]}  e6 {[%clk 0:02:49]} 11. Kh1 {[%clk 0:02:56]}  Nh5 {[%clk 0:02:47]} 12. Qf2 {[%clk 0:02:52]}  a5 {[%clk 0:02:44]} 13. g4 {[%clk 0:02:52]}  Nf6 {[%clk 0:02:43]} 14. Qh4 {[%clk 0:02:47]}  a4 {[%clk 0:02:40]} 15. f5 {[%clk 0:02:43]}  exf5 {[%clk 0:02:33]} 16. gxf5 {[%clk 0:02:40]}  gxf5 {[%clk 0:02:16]} 17. Bg5 {[%clk 0:02:36]}  h6 {[%clk 0:01:55]} 18. Bxh6 {[%clk 0:02:33]}  Ng4 {[%clk 0:01:48]} 19. Bg5 {[%clk 0:01:50]}  f6 {[%clk 0:01:48]} 20. Bf4 {[%clk 0:01:48]}  d5 {[%clk 0:01:41]} 21. exf5 {[%clk 0:01:44]}  Bxf5 {[%clk 0:01:42]} 22. Rg1 {[%clk 0:01:43]}  Qd7 {[%clk 0:01:39]} 23. h3 {[%clk 0:01:35]}  Ne5 {[%clk 0:01:37]} 24. Bxe5 {[%clk 0:01:32]}  fxe5 {[%clk 0:01:35]} 25. Nxe5 {[%clk 0:01:00]}  Qd6 {[%clk 0:01:35]} 26. Rxg7+ {[%clk 0:00:56]}  Kxg7 {[%clk 0:01:32]} 27. Rg1+ {[%clk 0:00:57]}  Bg6 {[%clk 0:01:31]} 28. Rxg6+ {[%clk 0:00:55]}  Qxg6 {[%clk 0:01:29]} 29. Nxg6 {[%clk 0:00:55]}  Kxg6 {[%clk 0:01:30]} 30. Qg4+ {[%clk 0:00:52]}  Kh7 {[%clk 0:01:29]} 31. Qd7+ {[%clk 0:00:51]}  Kh8 {[%clk 0:01:27]} 32. Qxc6 {[%clk 0:00:51]}  Rf1+ {[%clk 0:01:27]} 33. Kg2 {[%clk 0:00:50]}  Raf8 {[%clk 0:01:28]} 34. Qh6+ {[%clk 0:00:47]}  Kg8 {[%clk 0:01:28]} 35. Qg5+ {[%clk 0:00:47]}  Kh8 {[%clk 0:01:28]} 36. Qh4+ {[%clk 0:00:46]}  Kg8 {[%clk 0:01:27]} 37. Nxd5 {[%clk 0:00:46]}  R1f7 {[%clk 0:01:22]} 38. Ne7+ {[%clk 0:00:44]}  Kg7 {[%clk 0:01:22]} 39. Qg5+ {[%clk 0:00:44]}  Kh7 {[%clk 0:01:21]} 40. Qh5+ {[%clk 0:00:43]}  Kg7 {[%clk 0:01:21]} 41. Qg6+ {[%clk 0:00:43]}  Kh8 {[%clk 0:01:21]} 42. Qh6+ {[%clk 0:00:42]}  Rh7 {[%clk 0:01:21]} 43. Ng6+ {[%clk 0:00:42]}  Kg8 {[%clk 0:01:20]} 44. Qxf8# {[%clk 0:00:42]} 1-0


[Site "https://www.chess.com"]

[Event "Titled Tuesday Blitz August 1 Early 2023"]
[White "favesaul"]
[Black "Ai, Evan"]
[BlackFideId "2094770"]
[WhiteElo "2445"]
[BlackElo "2314"]
[Result "1-0"]
[Round "8"]
[TimeControl "180+1"]
[Date "2023.08.01"]
[WhiteClock "0:00:37"]
[BlackClock "0:00:02"]
[Board "157"]

1. e4 {[%clk 0:02:56]}  c5 {[%clk 0:02:59]} 2. Nf3 {[%clk 0:02:56]}  d6 {[%clk 0:02:59]} 3. d4 {[%clk 0:02:55]}  cxd4 {[%clk 0:03:00]} 4. Nxd4 {[%clk 0:02:55]}  Nf6 {[%clk 0:03:01]} 5. Nc3 {[%clk 0:02:55]}  a6 {[%clk 0:03:02]} 6. Bc4 {[%clk 0:02:55]}  e6 {[%clk 0:03:02]} 7. Be3 {[%clk 0:02:54]}  Qc7 {[%clk 0:03:02]} 8. Bb3 {[%clk 0:02:54]}  Be7 {[%clk 0:02:57]} 9. Qe2 {[%clk 0:02:52]}  b5 {[%clk 0:02:56]} 10. O-O-O {[%clk 0:02:50]}  Nc6 {[%clk 0:02:47]} 11. f3 {[%clk 0:02:43]}  O-O {[%clk 0:02:45]} 12. g4 {[%clk 0:02:42]}  Bd7 {[%clk 0:02:32]} 13. h4 {[%clk 0:02:36]}  Nxd4 {[%clk 0:02:21]} 14. Bxd4 {[%clk 0:02:37]}  Rab8 {[%clk 0:02:12]} 15. e5 {[%clk 0:02:24]}  Ne8 {[%clk 0:02:03]} 16. exd6 {[%clk 0:02:17]}  Bxd6 {[%clk 0:02:04]} 17. Ne4 {[%clk 0:02:17]}  Bf4+ {[%clk 0:02:01]} 18. Kb1 {[%clk 0:02:17]}  a5 {[%clk 0:01:50]} 19. c3 {[%clk 0:01:59]}  a4 {[%clk 0:01:48]} 20. Bc2 {[%clk 0:01:58]}  Nd6 {[%clk 0:01:42]} 21. Ng5 {[%clk 0:01:55]}  h6 {[%clk 0:01:37]} 22. Ne4 {[%clk 0:01:31]}  Nc4 {[%clk 0:01:32]} 23. g5 {[%clk 0:01:25]}  b4 {[%clk 0:01:02]} 24. cxb4 {[%clk 0:01:21]}  Rxb4 {[%clk 0:01:03]} 25. Ka1 {[%clk 0:00:55]}  Rfb8 {[%clk 0:00:54]} 26. Nf6+ {[%clk 0:00:41]}  gxf6 {[%clk 0:00:46]} 27. gxf6 {[%clk 0:00:41]}  Qb7 {[%clk 0:00:13]} 28. Qg2+ {[%clk 0:00:39]}  Bg5 {[%clk 0:00:11]} 29. hxg5 {[%clk 0:00:39]}  h5 {[%clk 0:00:09]} 30. g6 {[%clk 0:00:38]}  Kf8 {[%clk 0:00:02]} 31. gxf7 {[%clk 0:00:37]} 1-0


[Site "https://www.chess.com"]

[Event "Titled Tuesday Blitz August 1 Early 2023"]
[White "Necromon"]
[Black "Ziatdinov, Raset"]
[BlackFideId "2015323"]
[WhiteElo "2428"]
[BlackElo "2294"]
[Result "1-0"]
[Round "8"]
[TimeControl "180+1"]
[Date "2023.08.01"]
[WhiteClock "0:01:36"]
[BlackClock "0:01:08"]
[Board "159"]

1. Nf3 {[%clk 0:03:00]}  Nf6 {[%clk 0:02:59]} 2. b3 {[%clk 0:03:01]}  g6 {[%clk 0:03:00]} 3. Bb2 {[%clk 0:03:01]}  Bg7 {[%clk 0:03:01]} 4. g3 {[%clk 0:03:02]}  O-O {[%clk 0:03:01]} 5. Bg2 {[%clk 0:03:02]}  d6 {[%clk 0:03:02]} 6. c4 {[%clk 0:03:02]}  Nc6 {[%clk 0:03:02]} 7. d4 {[%clk 0:03:00]}  e5 {[%clk 0:03:02]} 8. dxe5 {[%clk 0:02:58]}  Ng4 {[%clk 0:03:02]} 9. O-O {[%clk 0:02:57]}  dxe5 {[%clk 0:03:03]} 10. Nc3 {[%clk 0:02:54]}  f5 {[%clk 0:03:01]} 11. Qd5+ {[%clk 0:02:30]}  Qxd5 {[%clk 0:02:37]} 12. Nxd5 {[%clk 0:02:31]}  Rf7 {[%clk 0:02:37]} 13. Ng5 {[%clk 0:02:12]}  e4 {[%clk 0:02:24]} 14. Nxf7 {[%clk 0:02:03]}  Bxb2 {[%clk 0:02:23]} 15. Rab1 {[%clk 0:02:03]}  Bg7 {[%clk 0:02:11]} 16. h3 {[%clk 0:02:01]}  Nge5 {[%clk 0:02:03]} 17. Nxc7 {[%clk 0:01:55]}  Rb8 {[%clk 0:02:03]} 18. Nxe5 {[%clk 0:01:54]}  Nxe5 {[%clk 0:01:59]} 19. Rfd1 {[%clk 0:01:52]}  Nc6 {[%clk 0:01:37]} 20. b4 {[%clk 0:01:41]}  a6 {[%clk 0:01:30]} 21. b5 {[%clk 0:01:41]}  Nd4 {[%clk 0:01:30]} 22. e3 {[%clk 0:01:41]}  Ne2+ {[%clk 0:01:30]} 23. Kf1 {[%clk 0:01:39]}  Nc3 {[%clk 0:01:28]} 24. Rd8+ {[%clk 0:01:39]}  Kf7 {[%clk 0:01:28]} 25. bxa6 {[%clk 0:01:36]}  Be5 {[%clk 0:01:07]} 26. a7 {[%clk 0:01:36]}  Bxc7 {[%clk 0:01:08]} 27. axb8=Q {[%clk 0:01:35]}  Bxb8 {[%clk 0:01:08]} 28. Rxc8 {[%clk 0:01:36]} 1-0


[Site "https://www.chess.com"]

[Event "Titled Tuesday Blitz August 1 Early 2023"]
[White "Ventura Bolet, Maxim"]
[Black "UgarteCesar"]
[WhiteFideId "22238824"]
[WhiteElo "2390"]
[BlackElo "2220"]
[Result "1/2-1/2"]
[Round "8"]
[TimeControl "180+1"]
[Date "2023.08.01"]
[WhiteClock "0:01:05"]
[BlackClock "0:01:03"]
[Board "164"]

1. Nf3 {[%clk 0:03:00]}  d5 {[%clk 0:02:59]} 2. g3 {[%clk 0:02:59]}  Nf6 {[%clk 0:02:59]} 3. Bg2 {[%clk 0:02:58]}  e6 {[%clk 0:02:59]} 4. c4 {[%clk 0:02:58]}  Nbd7 {[%clk 0:02:59]} 5. b3 {[%clk 0:02:57]}  a5 {[%clk 0:02:58]} 6. Nc3 {[%clk 0:02:56]}  c6 {[%clk 0:02:58]} 7. Bb2 {[%clk 0:02:54]}  Be7 {[%clk 0:02:58]} 8. O-O {[%clk 0:02:54]}  O-O {[%clk 0:02:58]} 9. d4 {[%clk 0:02:53]}  b6 {[%clk 0:02:58]} 10. Nd2 {[%clk 0:02:49]}  Bb7 {[%clk 0:02:56]} 11. e4 {[%clk 0:02:49]}  dxe4 {[%clk 0:02:56]} 12. Ndxe4 {[%clk 0:02:49]}  Qb8 {[%clk 0:02:55]} 13. Ng5 {[%clk 0:02:30]}  h6 {[%clk 0:02:53]} 14. Nh3 {[%clk 0:02:30]}  Rd8 {[%clk 0:02:47]} 15. Re1 {[%clk 0:02:29]}  Bf8 {[%clk 0:02:39]} 16. Qc2 {[%clk 0:02:25]}  c5 {[%clk 0:02:37]} 17. d5 {[%clk 0:02:23]}  exd5 {[%clk 0:02:37]} 18. cxd5 {[%clk 0:02:22]}  Ne5 {[%clk 0:02:07]} 19. Rad1 {[%clk 0:02:18]}  c4 {[%clk 0:02:01]} 20. Rxe5 {[%clk 0:01:49]}  cxb3 {[%clk 0:01:58]} 21. Qxb3 {[%clk 0:01:34]}  Qxe5 {[%clk 0:01:55]} 22. Ne4 {[%clk 0:01:34]}  Qf5 {[%clk 0:01:14]} 23. Nxf6+ {[%clk 0:01:28]}  gxf6 {[%clk 0:01:14]} 24. Nf4 {[%clk 0:01:28]}  Bc5 {[%clk 0:01:06]} 25. Bh3 {[%clk 0:01:09]}  Qe4 {[%clk 0:01:03]} 26. Bg2 {[%clk 0:01:08]}  Qf5 {[%clk 0:01:02]} 27. Bh3 {[%clk 0:01:04]}  Qe4 {[%clk 0:01:02]} 28. Bg2 {[%clk 0:01:05]}  Qf5 {[%clk 0:01:03]} 1/2-1/2


[Site "https://www.chess.com"]

[Event "Titled Tuesday Blitz August 1 Early 2023"]
[White "sterpfi"]
[Black "Rodriguez Fontecha, Marcos"]
[BlackFideId "2256576"]
[WhiteElo "2209"]
[BlackElo "2388"]
[Result "0-1"]
[Round "8"]
[TimeControl "180+1"]
[Date "2023.08.01"]
[WhiteClock "0:00:18"]
[BlackClock "0:00:07"]
[Board "165"]

1. e4 {[%clk 0:03:00]}  e6 {[%clk 0:02:59]} 2. d4 {[%clk 0:03:00]}  d5 {[%clk 0:02:58]} 3. exd5 {[%clk 0:03:01]}  exd5 {[%clk 0:02:59]} 4. Nf3 {[%clk 0:03:02]}  c5 {[%clk 0:02:59]} 5. Bb5+ {[%clk 0:02:49]}  Nc6 {[%clk 0:02:58]} 6. O-O {[%clk 0:02:40]}  Be7 {[%clk 0:02:45]} 7. Nc3 {[%clk 0:02:35]}  Nf6 {[%clk 0:02:43]} 8. Ne5 {[%clk 0:02:31]}  Bd7 {[%clk 0:02:28]} 9. Nxd7 {[%clk 0:02:30]}  Qxd7 {[%clk 0:02:26]} 10. dxc5 {[%clk 0:02:30]}  h6 {[%clk 0:02:21]} 11. Be3 {[%clk 0:02:04]}  O-O {[%clk 0:02:18]} 12. Ne2 {[%clk 0:01:57]}  Ne4 {[%clk 0:02:14]} 13. b4 {[%clk 0:01:49]}  Bf6 {[%clk 0:02:00]} 14. Rb1 {[%clk 0:01:47]}  Rfd8 {[%clk 0:01:39]} 15. Bxc6 {[%clk 0:01:37]}  bxc6 {[%clk 0:01:37]} 16. Bd4 {[%clk 0:01:38]}  a5 {[%clk 0:01:19]} 17. Bxf6 {[%clk 0:01:34]}  Nxf6 {[%clk 0:01:20]} 18. a3 {[%clk 0:01:29]}  axb4 {[%clk 0:01:19]} 19. axb4 {[%clk 0:01:30]}  Ra2 {[%clk 0:01:18]} 20. Nd4 {[%clk 0:01:29]}  Ne4 {[%clk 0:01:16]} 21. Qd3 {[%clk 0:01:21]}  Rda8 {[%clk 0:01:00]} 22. Rfe1 {[%clk 0:01:18]}  R8a6 {[%clk 0:00:47]} 23. g3 {[%clk 0:01:17]}  Qh3 {[%clk 0:00:43]} 24. b5 {[%clk 0:01:00]}  cxb5 {[%clk 0:00:42]} 25. Rxb5 {[%clk 0:01:01]}  g6 {[%clk 0:00:32]} 26. c6 {[%clk 0:00:55]}  Ra1 {[%clk 0:00:20]} 27. Rbb1 {[%clk 0:00:52]}  R1a3 {[%clk 0:00:18]} 28. Qf1 {[%clk 0:00:42]}  Qc8 {[%clk 0:00:15]} 29. Rb5 {[%clk 0:00:28]}  Rxc6 {[%clk 0:00:14]} 30. Nxc6 {[%clk 0:00:20]}  Qxc6 {[%clk 0:00:15]} 31. Rb8+ {[%clk 0:00:20]}  Kg7 {[%clk 0:00:13]} 32. Qb5 {[%clk 0:00:20]}  Qf6 {[%clk 0:00:11]} 33. Qb2 {[%clk 0:00:18]}  Rc3 {[%clk 0:00:07]} 34. Rf1 {[%clk 0:00:17]}  d4 {[%clk 0:00:06]} 35. Rb6 {[%clk 0:00:16]}  Qf5 {[%clk 0:00:05]} 36. Rb8 {[%clk 0:00:15]}  Nd2 {[%clk 0:00:04]} 37. Qb4 {[%clk 0:00:14]}  Nxf1 {[%clk 0:00:03]} 38. Qf8+ {[%clk 0:00:14]}  Kf6 {[%clk 0:00:04]} 39. Rb6+ {[%clk 0:00:11]}  Kg5 {[%clk 0:00:04]} 40. Qe7+ {[%clk 0:00:10]}  Kh5 {[%clk 0:00:04]} 41. Qe2+ {[%clk 0:00:09]}  Qg4 {[%clk 0:00:03]} 42. Qxf1 {[%clk 0:00:09]}  Rf3 {[%clk 0:00:02]} 43. h3 {[%clk 0:00:09]}  Qe4 {[%clk 0:00:02]} 44. g4+ {[%clk 0:00:08]}  Kh4 {[%clk 0:00:02]} 45. Rb1 {[%clk 0:00:07]}  Qf4 {[%clk 0:00:03]} 46. Qg2 {[%clk 0:00:07]}  h5 {[%clk 0:00:03]} 47. Re1 {[%clk 0:00:07]}  Rxh3 {[%clk 0:00:03]} 48. f3 {[%clk 0:00:06]}  Rg3 {[%clk 0:00:03]} 49. Kf2 {[%clk 0:00:06]}  Rxg2+ {[%clk 0:00:03]} 50. Kxg2 {[%clk 0:00:07]}  Qg3+ {[%clk 0:00:04]} 51. Kf1 {[%clk 0:00:07]}  Qxf3+ {[%clk 0:00:04]} 52. Kg1 {[%clk 0:00:08]}  Qg3+ {[%clk 0:00:05]} 53. Kf1 {[%clk 0:00:08]}  Kh3 {[%clk 0:00:06]} 54. Re2 {[%clk 0:00:08]}  Qf3+ {[%clk 0:00:06]} 55. Ke1 {[%clk 0:00:09]}  Qh1+ {[%clk 0:00:06]} 56. Kd2 {[%clk 0:00:10]}  Qd5 {[%clk 0:00:07]} 57. Kd3 {[%clk 0:00:10]}  Kxg4 {[%clk 0:00:07]} 58. Re4+ {[%clk 0:00:11]}  Kf5 {[%clk 0:00:06]} 59. Rxd4 {[%clk 0:00:12]}  Qb5+ {[%clk 0:00:07]} 60. Kc3 {[%clk 0:00:12]}  Qc5+ {[%clk 0:00:05]} 61. Kd3 {[%clk 0:00:13]}  h4 {[%clk 0:00:05]} 62. Rc4 {[%clk 0:00:14]}  Qd5+ {[%clk 0:00:06]} 63. Rd4 {[%clk 0:00:14]}  Qf3+ {[%clk 0:00:06]} 64. Kc4 {[%clk 0:00:13]}  h3 {[%clk 0:00:07]} 65. c3 {[%clk 0:00:14]}  Qf1+ {[%clk 0:00:07]} 66. Kc5 {[%clk 0:00:14]}  h2 {[%clk 0:00:08]} 67. Rd5+ {[%clk 0:00:15]}  Ke6 {[%clk 0:00:08]} 68. Rd4 {[%clk 0:00:16]}  Qc1 {[%clk 0:00:07]} 69. Re4+ {[%clk 0:00:16]}  Kf6 {[%clk 0:00:07]} 70. Rf4+ {[%clk 0:00:16]}  Qxf4 {[%clk 0:00:05]} 71. c4 {[%clk 0:00:16]}  Qxc4+ {[%clk 0:00:05]} 72. Kb6 {[%clk 0:00:17]}  h1=Q {[%clk 0:00:05]} 73. Ka7 {[%clk 0:00:17]}  Qa1+ {[%clk 0:00:05]} 74. Kb6 {[%clk 0:00:18]}  Qb1+ {[%clk 0:00:06]} 75. Ka5 {[%clk 0:00:18]}  Qca2# {[%clk 0:00:07]} 0-1


[Site "https://www.chess.com"]